{"text_format":"1","workbook":"xlsx","n_sheets":1,"sheets":["Sheet1"],"not_rendered":{"charts":0,"images":0,"macros":0,"external_links":0,"defined_names":0,"comments":0,"pivot_tables":0},"unopened":[],"bounds":{"document_bytes":16777216,"sheet_cells":100000,"rows_first":2000,"rows_last":500,"rows_between":2000,"halvings":0,"cell_chars":16384,"cell_head_chars":4096},"cells_cut":0,"cells_raw":0,"read":"whole","date_system":"1900"}

{"sheet":"Sheet1","index":0,"n_rows":30,"n_cols":12,"rows_kept":30,"cut":false,"hidden":false,"merged":[[16,0,16,7],[0,0,0,7],[1,1,1,4],[4,0,4,7],[6,0,6,7],[8,1,8,7],[9,1,9,7],[2,1,2,4],[10,1,10,7],[11,1,11,7],[12,1,12,7],[13,1,13,7],[14,1,14,7]]}
["Peer Review"]
["Manager Name:",null,null,null,null,null,"Date:",{"$f":"TODAY()","v":"2017-09-12"}]
["Corp #:"]
[]
["Instructions"]
[]
["Rate your colleagues on a scale from 1 to 10.  Guidelines: 1 = No Contribution, 8 = Average Contribution, 10 = Exceptional Contribution"]
["Column"]
[1,"· Rate the amount of his/her work since last peer review."]
[2,"· Rate the significance of his/her work since last peer review."]
[3,"· Rate the the level of significant progress the member has shown on their assignments."]
[4,"· Rate how the member worked with the group (i.e. showing up to meetings, being proactive, etc.)"]
[5,"· Rate the performance of your manager (if applicable)."]
[6,"· Did (s)he have any unexcused absences since last peer review? Answer Y or N in column 6."]
[7,"· Leave relevant comments regarding the members overall performance."]
[null,null,null,null,null,null,null,null,null,null,"Estimated Sponsor Grade:",80]
["Rubric"]
[null,1,2,3,4,5,6,7,null,"Manager Peer Review Results","Normalized Peer Review Results","Final Peer Review Results"]
[null,"Amount of Work","Significance Of Work","Progress on Assignments","Work Well in Group?","Rate your Manager","Unexcused Absence (Y/N)","Comments"]
["Student Name",null,null,null,null,null,null,null,null,null,8,{"$f":"IFERROR(K20*($L$16/(8*100)), \"\")","v":0.8}]
[{"$f":"B2&\" (Manager)\"","v":" (Manager)"},null,null,null,null,null,null,null,null,{"$f":"IFERROR(AVERAGE(B22:F22), \"\")","v":""},{"$f":"IFERROR(J21*(8/AVERAGE($J$21:$J$30)),\"\")","v":""},{"$f":"IFERROR(K21*($L$16/(8*100)), \"\")","v":""}]
[null,null,null,null,null,null,null,null,null,{"$f":"IFERROR(AVERAGE(B23:F23), \"\")","v":""},{"$f":"IFERROR(J22*(8/AVERAGE($J$21:$J$30)),\"\")","v":""},""]
[null,null,null,null,null,null,null,null,null,"","",""]
[null,null,null,null,null,null,null,null,null,"","",""]
[null,null,null,null,null,null,null,null,null,"","",""]
[null,null,null,null,null,null,null,null,null,"","",""]
[null,null,null,null,null,null,null,null,null,"","",""]
[null,null,null,null,null,null,null,null,null,"","",""]
[null,null,null,null,null,null,null,null,null,"","",""]
[null,null,null,null,null,null,null,null,null,"","",""]